bitfinex-derivatives/quotes_SOLF0:USTF0_20230103
["timestamp","ask_amount","ask_price","bid_price","bid_amount"]
[1672765890276,0.06660191,13.133,13.132,0.36057929]
[1672765890485,0.06892075,13.137,13.132,0.36057929]
[1672765891429,0.06892075,13.137,13.128,18.76464456]
[1672765891639,0.06892075,13.137,13.132,0.36057929]
[1672765893005,0.06892075,13.137,13.129,5.0]
[1672765893219,0.06892075,13.137,13.132,0.36057929]
[1672765893754,0.06892075,13.137,13.129,5.0]
[1672765894063,0.06892075,13.137,13.132,0.36057929]
[1672765895108,49.63942071,13.136,13.128,0.06464456]
[1672765895424,0.06892075,13.137,13.128,0.06464456]
[1672765895851,49.63942071,13.136,13.128,0.06464456]
[1672765896058,5.0,13.135,13.128,0.06464456]
[1672765897532,49.63942071,13.136,13.128,0.06464456]
[1672765897746,0.06892075,13.137,13.132,18.7]
[1672765897951,0.06892075,13.137,13.136,18.77]
[1672765898269,0.0679255,13.141,13.136,18.77]
[1672765898469,0.06146072,13.143,13.134,5.0707333]
[1672765898897,0.06146072,13.143,13.134,0.0707333]
[1672765900054,5.0,13.145,13.143,0.12868445]
[1672765900264,5.0,13.145,13.127,5.0]
[1672765900786,5.0,13.145,13.132,0.36057929]
[1672765901310,0.06813404,13.143,13.134,0.06923498]
[1672765901524,0.06813404,13.143,13.134,5.06923498]
[1672765901842,0.06813404,13.143,13.134,0.06923498]
[1672765905197,49.63942071,13.137,13.134,0.06923498]
[1672765905417,5.0,13.136,13.122,45.61017929]
[1672765905725,5.0,13.136,13.122,0.36057929]
[1672765905936,50.2351,13.136,13.122,5.36057929]
[1672765906252,0.06268745,13.134,13.122,0.36057929]
[1672765906457,49.63942071,13.127,13.124,0.07036244]
[1672765906674,5.0,13.126,13.121,0.07017092]
[1672765906883,5.0,13.126,13.119,0.06602569]
[1672765907094,5.0,13.126,13.118,0.06042869]
[1672765907930,48.9573,13.126,13.118,0.06042869]
[1672765908351,0.06473703,13.127,13.123,0.36057929]
[1672765909611,0.06473703,13.127,13.118,0.06042869]
[1672765910353,5.0,13.126,13.118,0.00042869]
[1672765910874,5.0,13.126,13.107,5.0]
[1672765911088,49.63942071,13.118,13.106,18.69]
[1672765911298,5.0,13.124,13.103,0.36057929]
[1672765911508,5.0,13.117,13.103,0.36057929]
[1672765911719,0.06187264,13.115,13.105,0.0602106]
[1672765911923,49.63942071,13.108,13.105,0.0602106]
[1672765912139,0.06264585,13.111,13.102,0.0631882]
[1672765912346,0.07130066,13.111,13.102,0.06075694]
[1672765912771,5.0,13.107,13.102,0.00075694]
[1672765913398,5.0,13.107,13.104,18.68]
[1672765913610,5.0,13.11,13.104,18.68]
[1672765913820,0.07130066,13.111,13.104,18.68]
[1672765914032,5.0,13.126,13.109,5.0]
[1672765914245,5.0,13.126,13.112,18.81]
[1672765915079,5.06184865,13.121,13.113,0.36057929]
[1672765916238,5.06184865,13.121,13.112,18.87203923]
[1672765917077,49.63942071,13.118,13.112,0.06203923]
[1672765917283,5.0,13.117,13.104,19.18057929]
[1672765918338,0.06732639,13.115,13.106,0.0711514]
[1672765919599,0.06732639,13.115,13.109,18.82]
[1672765920648,0.06732639,13.115,13.106,0.0711514]
[1672765922639,0.06732639,13.115,13.109,18.81]
[1672765923382,0.06732639,13.115,13.106,0.0711514]
[1672765924326,0.06732639,13.115,13.109,18.82]
[1672765924531,0.06732639,13.115,13.11,5.0]
[1672765926216,0.06732639,13.115,13.109,18.82]
[1672765931266,0.06732639,13.115,13.112,18.67]
[1672765931470,0.06744353,13.118,13.112,18.67]
[1672765931680,0.06706168,13.12,13.115,18.69]
[1672765931892,0.06379772,13.122,13.119,18.69]
[1672765932205,0.06416073,13.125,13.12,0.14204474]
[1672765932414,0.06095153,13.127,13.12,0.14204474]
[1672765933150,5.06095153,13.127,13.12,0.14204474]
[1672765934619,0.06095153,13.127,13.12,0.14204474]
[1672765934829,0.06095153,13.127,13.122,18.81]
[1672765935464,5.0,13.136,13.126,18.76]
[1672765935668,5.0,13.136,13.127,5.0]
[1672765935879,48.9765,13.144,13.13,18.81]
[1672765936094,43.9765,13.147,13.133,18.82]
[1672765936305,5.0,13.146,13.133,18.82]
[1672765936622,0.06627392,13.144,13.135,0.06516777]
[1672765937882,0.06627392,13.144,13.137,18.7]
[1672765939250,0.06627392,13.144,13.135,0.06516777]
[1672765941449,49.63942071,13.139,13.135,0.06516777]
[1672765941660,0.06627392,13.144,13.135,0.06516777]
[1672765943558,49.63942071,13.139,13.124,0.36057929]
[1672765943768,5.0,13.138,13.124,0.36057929]
[1672765943978,46.7594,13.138,13.124,0.36057929]
[1672765944192,5.0,13.137,13.124,0.36057929]
[1672765944608,0.06932415,13.135,13.126,0.07142186]
[1672765945979,0.06932415,13.135,13.129,18.77]
[1672765946292,0.06932415,13.135,13.13,5.0]
[1672765946921,0.06932415,13.135,13.134,0.36057929]
[1672765947239,0.0712354,13.139,13.134,0.36057929]
[1672765947449,0.06291285,13.141,13.132,0.06133581]
[1672765947762,0.06291285,13.141,13.135,0.36057929]
[1672765948185,0.06291285,13.141,13.132,0.06133581]
[1672765948394,0.06291285,13.141,13.132,18.88133581]
[1672765949133,0.06291285,13.141,13.133,5.0]
[1672765949970,0.06291285,13.141,13.135,0.36057929]
[1672765950180,0.06291285,13.141,13.133,5.0]
[1672765950390,0.06291285,13.141,13.132,18.88133581]
[1672765950601,0.06291285,13.141,13.135,0.36057929]
[1672765951235,0.06291285,13.141,13.136,18.82]
[1672765951542,0.06291285,13.141,13.137,5.0]
[1672765951970,0.06291285,13.141,13.136,18.82]
[1672765953544,0.06291285,13.141,13.139,18.67]
[1672765953754,0.06377874,13.145,13.14,5.0]
[1672765953965,0.06646261,13.147,13.14,5.0]
[1672765954280,0.06646261,13.147,13.139,18.67]
[1672765954490,0.06646261,13.147,13.14,5.0]
[1672765954700,0.06646261,13.147,13.145,0.36057929]
[1672765955016,5.0,13.15,13.145,0.36057929]
[1672765955532,0.063443,13.151,13.145,0.36057929]
[1672765958173,0.063443,13.151,13.141,0.06230187]
[1672765958383,5.0,13.155,13.151,0.00711287]
[1672765959122,43.8069,13.156,13.151,0.00711287]
[1672765959753,5.0,13.155,13.151,0.00711287]
[1672765960487,43.8069,13.156,13.151,0.00711287]
[1672765960905,0.07038497,13.158,13.151,0.00711287]
[1672765962692,0.07038497,13.158,13.151,18.76711287]
[1672765962900,0.07038497,13.158,13.154,18.67]
[1672765963325,0.07038497,13.158,13.155,5.0]
[1672765963641,0.06321825,13.161,13.152,0.07132471]
[1672765963851,5.0,13.16,13.145,0.36057929]
[1672765964060,54.63942071,13.16,13.145,0.36057929]
[1672765964690,5.0,13.158,13.145,0.36057929]
[1672765964898,0.06689926,13.156,13.147,0.06955551]
[1672765965321,0.06689926,13.156,13.148,5.0]
[1672765965526,0.06689926,13.156,13.151,18.81]
[1672765965950,0.06689926,13.156,13.152,5.0]
[1672765966688,0.06689926,13.156,13.154,18.7]
[1672765966901,0.06432815,13.16,13.154,18.7]
[1672765967111,0.06783649,13.162,13.154,18.7]
[1672765967842,0.06783649,13.162,13.158,18.69]
[1672765969521,0.06783649,13.162,13.155,0.06397107]
[1672765970991,0.06783649,13.162,13.155,0.00397107]
[1672765970992,5.0,13.159,13.155,0.00397107]
[1672765972153,0.06783649,13.162,13.155,0.00397107]
[1672765974150,0.06783649,13.162,13.156,0.36057929]
[1672765976985,0.06783649,13.162,13.158,18.69]
[1672765979085,0.06783649,13.162,13.156,0.36057929]
[1672765982450,0.06783649,13.162,13.155,0.00397107]
[1672765982663,49.63942071,13.16,13.155,0.00397107]
[1672765982873,5.0,13.159,13.155,0.00397107]
[1672765983502,4.88837123,13.159,13.155,0.00397107]
[1672765984021,49.31467123,13.159,13.155,0.00397107]
[1672765987490,44.4263,13.159,13.155,0.00397107]
[1672765988337,5.0,13.158,13.155,0.00397107]
[1672765988652,5.0,13.158,13.152,0.06378172]
[1672765988867,5.0,13.158,13.15,0.06892308]
[1672765989176,5.0,13.158,13.149,0.06267955]
[1672765989809,49.49218119,13.159,13.149,0.06267955]
[1672765990121,5.0,13.158,13.149,0.06267955]
[1672765992327,49.63942071,13.151,13.149,0.06267955]
[1672765992533,5.0,13.158,13.138,18.7]
[1672765992744,5.0,13.158,13.142,5.0]
[1672765992958,5.0,13.158,13.142,23.67]
[1672765993378,0.0673262,13.155,13.145,0.06612693]
[1672765994007,0.0673262,13.155,13.147,0.36057929]
[1672765995062,0.0673262,13.155,13.145,0.06612693]
[1672765995275,49.63942071,13.151,13.145,0.06612693]
[1672765995484,5.0,13.15,13.145,0.06612693]
[1672765996005,5.0,13.15,13.147,0.36057929]
[1672765996210,0.07146262,13.152,13.147,0.36057929]
[1672765996636,0.07146262,13.152,13.146,18.77]
[1672765996840,0.07146262,13.152,13.148,0.36057929]
[1672765999474,0.07146262,13.152,13.146,18.77]
[1672765999684,0.07146262,13.152,13.148,0.36057929]
[1672766001679,0.07146262,13.152,13.145,0.06612693]
[1672766001885,5.0,13.15,13.127,5.0]
[1672766002100,5.0,13.15,13.138,0.36057929]
[1672766003046,0.06331067,13.149,13.139,0.06016723]
[1672766014917,5.0,13.15,13.149,0.02707388]
[1672766015546,5.0,13.15,13.138,0.36057929]
[1672766015969,0.06147189,13.149,13.139,0.06317356]
[1672766016916,0.06147189,13.149,13.139,18.82317356]
[1672766023215,0.06147189,13.149,13.139,0.06317356]
[1672766028687,5.0,13.15,13.149,0.08343094]
[1672766028901,42.4299,13.151,13.149,0.08343094]
[1672766029844,5.0,13.15,13.145,0.06334431]
[1672766030056,5.0,13.15,13.143,0.06391307]
[1672766030266,5.0,13.15,13.142,0.06394215]
[1672766034891,47.498716,13.151,13.142,0.06394215]
[1672766035095,5.0,13.15,13.142,0.06394215]
[1672766035305,42.498716,13.151,13.142,0.06394215]
[1672766035523,0.068816,13.151,13.142,18.82394215]
[1672766035837,0.068816,13.151,13.143,5.0]
[1672766037098,0.068816,13.151,13.142,18.82394215]
[1672766037412,0.068816,13.151,13.149,0.36057929]
[1672766037621,0.06788897,13.155,13.149,0.36057929]
[1672766038037,0.06788897,13.155,13.147,0.06073772]
[1672766040033,0.06788897,13.155,13.149,0.36057929]
[1672766040563,5.0,13.154,13.147,0.06073772]
[1672766042034,5.0,13.154,13.138,18.85]
[1672766042243,5.0,13.154,13.135,18.89]
[1672766042453,50.0,13.152,13.136,5.0]
[1672766042664,5.0,13.151,13.136,5.0]
[1672766043087,0.06091914,13.148,13.139,0.06463165]
[1672766046237,5.0,13.147,13.125,18.77]
[1672766046445,5.0,13.141,13.122,18.89]
[1672766046650,5.0,13.141,13.125,18.85]
[1672766046866,5.0,13.141,13.13,5.0]
[1672766047185,5.0,13.141,13.134,5.0]
[1672766047388,0.06761407,13.14,13.134,5.0]
[1672766047603,0.06258983,13.142,13.133,18.79]
[1672766047813,0.06258983,13.142,13.133,18.85659914]
[1672766048548,50.06258983,13.142,13.126,18.89]
[1672766048760,5.0,13.141,13.127,5.0]
[1672766049703,0.06131784,13.139,13.129,0.06146812]
[1672766050545,0.06131784,13.139,13.129,18.95146812]
[1672766055795,0.06131784,13.139,13.129,0.06146812]
[1672766056211,50.0,13.133,13.129,0.06146812]
[1672766056430,5.0,13.132,13.123,18.79]
[1672766057366,5.06777479,13.132,13.123,0.06654039]
[1672766057580,5.06777479,13.132,13.116,5.0]
[1672766057787,43.2263,13.131,13.116,5.0]
[1672766058004,5.0,13.13,13.116,5.0]
[1672766058321,5.0,13.13,13.118,18.82]
[1672766058530,0.06191046,13.129,13.119,5.07005327]
[1672766059790,0.00191046,13.129,13.122,18.89]
[1672766060105,0.00191046,13.129,13.119,5.07005327]
[1672766060315,0.00191046,13.129,13.119,0.07005327]
[1672766060731,5.0,13.122,13.098,50.0]
[1672766060946,5.0,13.122,13.109,18.89]
[1672766061157,5.0,13.122,13.11,5.0]
[1672766061687,5.0,13.122,13.106,18.82]
[1672766061996,0.06844306,13.119,13.109,0.06009047]
[1672766062733,0.06844306,13.119,13.109,18.95009047]
[1672766063048,0.06844306,13.119,13.112,18.89]
[1672766063258,50.0,13.123,13.113,5.0]
[1672766063472,5.0,13.122,13.113,5.0]
[1672766063676,5.0,13.122,13.116,18.89]
[1672766063886,5.0,13.127,13.12,18.89]
[1672766064204,0.06830347,13.128,13.121,5.0]
[1672766064623,0.06830347,13.128,13.12,18.89]
[1672766065043,0.06830347,13.128,13.119,0.06551406]
[1672766065044,0.06830347,13.128,13.124,18.89]
[1672766069358,0.06830347,13.128,13.119,0.06551406]
[1672766069359,3.47e-06,13.128,13.127,18.89]
[1672766069568,47.7271,13.141,13.127,18.89]
[1672766070091,47.7271,13.141,13.108,125.59]
[1672766070305,5.0,13.133,13.108,125.59]
[1672766070508,42.7271,13.132,13.116,18.89]
[1672766070718,0.07029758,13.129,13.119,0.0621766]
[1672766075768,50.0,13.124,13.119,0.0621766]
[1672766076193,5.0,13.123,13.119,0.0621766]
[1672766077449,5.0,13.123,13.11,18.89]
[1672766078499,0.06444572,13.121,13.112,0.06169383]
[1672766079867,0.06444572,13.121,13.113,18.89]
[1672766080079,0.06444572,13.121,13.114,5.0]
[1672766081022,0.06444572,13.121,13.113,18.89]
[1672766084909,0.06444572,13.121,13.112,0.06169383]
[1672766088697,0.06444572,13.121,13.115,18.81]
[1672766088906,0.06444572,13.121,13.116,5.0]
[1672766089643,0.06444572,13.121,13.113,5.0]
[1672766091848,5.0,13.129,13.121,0.07993026]
[1672766092268,45.2572,13.13,13.121,0.07993026]
[1672766092474,5.0,13.129,13.121,0.07993026]
[1672766095216,45.32187246,13.13,13.121,0.07993026]
[1672766095428,5.0,13.129,13.121,0.07993026]
[1672766096583,45.32187246,13.13,13.121,0.07993026]
[1672766096902,5.0,13.129,13.121,0.07993026]
[1672766097418,5.0,13.129,13.112,25.38728483]
[1672766097634,50.0,13.113,12.974,51.73229652]
[1672766097845,18.81,13.069,13.05,50.0]
[1672766098055,18.81,13.069,13.049,50.0]
[1672766098260,636.0,13.086,13.051,5.0]
[1672766098469,5.0,13.068,13.051,5.0]
[1672766098685,0.06484098,13.064,13.055,0.06749492]
[1672766098894,5.0,13.085,13.064,18.95]
[1672766099103,5.0,13.085,13.069,50.0]
[1672766099316,5.0,13.085,13.059,50.0]
[1672766099521,5.0,13.085,13.07,5.0]
[1672766099734,0.06643797,13.082,13.08,18.91]
[1672766099945,5.0,13.095,13.081,5.0]
[1672766100151,5.0,13.103,13.087,18.91]
[1672766100366,0.06765706,13.1,13.087,18.91]
[1672766100576,0.06765706,13.1,13.09,0.07106514]
[1672766104043,50.0,13.096,13.09,0.07106514]
[1672766104256,23.76,13.095,13.09,0.00106514]
[1672766104467,5.0,13.094,13.09,0.00106514]
[1672766106042,50.0,13.091,13.09,0.00106514]
[1672766106248,5.0,13.09,13.069,50.0]
[1672766106457,50.0,13.086,13.07,5.0]
[1672766106670,18.88,13.08,13.06,4.9]
[1672766106984,50.0,13.076,13.049,50.0]
[1672766107194,0.06085538,13.067,13.058,0.06459811]
[1672766107406,0.06528689,13.067,13.059,50.0]
[1672766107613,0.06528689,13.067,13.06,5.0]
[1672766108041,5.0,13.075,13.06,23.9]
[1672766108558,5.0,13.075,13.058,5.0]
[1672766108774,5.0,13.075,13.054,5.0]
[1672766109084,0.07104281,13.069,13.06,0.06775754]
[1672766109302,0.06402495,13.069,13.06,0.06552297]
[1672766110455,0.06402495,13.069,13.06,2.297e-05]
[1672766110770,18.98,13.061,13.042,5.0]
[1672766110980,5.0,13.06,13.042,5.0]
[1672766111612,0.06153076,13.056,13.046,0.06401495]
[1672766112137,0.06153076,13.056,13.049,50.0]
[1672766112454,0.06153076,13.056,13.05,5.0]
[1672766114658,0.06153076,13.056,13.046,0.06401495]
[1672766117492,5.06153076,13.056,13.046,0.06401495]
[1672766118545,5.0,13.052,13.033,5.0]
[1672766119172,5.0,13.052,13.032,5.0]
[1672766119381,18.98,13.05,13.024,61.4103]
[1672766119596,0.06047711,13.042,13.032,0.07037644]
[1672766119802,5.0,13.045,13.032,0.06910234]
[1672766120019,0.06472891,13.042,13.032,0.06910234]
[1672766120433,5.06472891,13.042,13.032,0.06910234]
[1672766121593,0.06472891,13.042,13.032,0.06910234]
[1672766122114,0.06472891,13.042,13.032,5.06910234]
[1672766122960,73.98,13.057,13.033,5.0]
[1672766124006,0.06709725,13.047,13.038,0.07119939]
[1672766125480,0.06709725,13.047,13.042,18.91]
[1672766125690,0.06709725,13.047,13.043,5.0]
[1672766126323,0.06709725,13.047,13.04,5.0]
[1672766126536,0.06709725,13.047,13.038,0.07119939]
[1672766135783,0.06709725,13.047,13.04,50.0]
[1672766136201,0.06709725,13.047,13.041,5.0]
[1672766136622,5.0,13.06,13.047,0.03721831]
[1672766137564,5.0,13.06,13.048,0.06215248]
[1672766137778,0.06598522,13.058,13.048,0.06215248]
[1672766138511,18.89,13.049,13.047,0.03721831]
[1672766138830,55.0,13.048,13.02,49.9]
[1672766139044,50.0,13.035,12.985,57.76]
[1672766139248,5.0,13.043,12.985,108.5904]
[1672766139458,5.0,13.034,13.014,18.81]
[1672766139670,5.0,13.034,13.018,18.95]
[1672766139876,5.0,13.043,13.018,18.95]
[1672766139877,0.00039939,13.029,13.019,0.06795255]
[1672766140091,5.0,13.043,13.031,5.0]
[1672766140300,5.0,13.052,13.031,5.0]
[1672766140717,50.0,13.045,13.031,5.0]
[1672766140930,0.06750821,13.043,13.033,0.06708641]
[1672766142089,0.06750821,13.043,13.033,5.06708641]
[1672766142508,0.06750821,13.043,13.036,18.98]
[1672766143140,0.06750821,13.043,13.033,5.06708641]
[1672766143555,0.06750821,13.043,13.033,0.06708641]
[1672766144402,50.0,13.036,13.024,5.0]
[1672766144613,5.0,13.035,13.024,5.0]
[1672766144824,5.0,13.042,13.024,5.0]
[1672766145029,55.0,13.046,13.024,5.0]
[1672766145243,5.0,13.045,13.033,18.81]
[1672766145456,0.07038653,13.044,13.034,0.06389519]
[1672766145769,0.062682,13.044,13.034,0.06736768]
[1672766149131,0.062682,13.044,13.034,18.97736768]
[1672766149342,0.062682,13.044,13.035,5.0]
[1672766151121,0.062682,13.044,13.034,18.97736768]
[1672766151652,0.062682,13.044,13.035,5.0]
[1672766153124,8.2e-05,13.044,13.042,18.95]
[1672766153336,5.0,13.061,13.043,5.0]
[1672766153858,5.0,13.061,13.037,5.0]
[1672766154070,0.06156189,13.054,13.044,0.06130729]
[1672766154276,0.07077037,13.054,13.044,0.06941912]
[1672766154488,5.07077037,13.054,13.044,0.06941912]
[1672766159533,0.07077037,13.054,13.044,0.06941912]
[1672766160689,5.07077037,13.054,13.044,0.06941912]
[1672766161436,0.07077037,13.054,13.044,0.06941912]
[1672766162797,0.07077037,13.054,13.046,18.98]
[1672766163010,0.07077037,13.054,13.047,5.0]
[1672766163742,0.07077037,13.054,13.044,0.06941912]
[1672766166785,5.0,13.073,13.054,5.0]
[1672766167204,5.0,13.073,13.057,5.0]
[1672766167626,0.0650184,13.07,13.06,0.06347179]
[1672766169729,50.0,13.065,13.06,0.06347179]
[1672766169940,5.0,13.064,13.047,23.81]
[1672766170563,5.0,13.064,13.051,5.0]
[1672766170777,5.0,13.064,13.053,0.06679146]
[1672766170987,0.06165213,13.062,13.053,0.06679146]
[1672766174036,0.06165213,13.062,13.056,5.0]
[1672766174450,0.06165213,13.062,13.055,18.91]
[1672766174667,0.06165213,13.062,13.053,0.06679146]
[1672766178554,0.06165213,13.062,13.055,18.98]
[1672766178765,0.06165213,13.062,13.056,5.0]
[1672766179184,0.06165213,13.062,13.054,44.069]
[1672766179494,0.06165213,13.062,13.053,0.06679146]
[1672766179708,5.06165213,13.062,13.053,0.06679146]
[1672766183068,5.06165213,13.062,13.042,18.81]
[1672766183283,5.0,13.061,13.039,48.7838]
[1672766183915,50.0,13.055,13.039,48.7838]
[1672766184124,5.0,13.054,13.039,48.7838]
[1672766184438,5.0,13.054,13.042,0.06535795]
[1672766184753,0.06032759,13.051,13.042,0.06535795]
[1672766190112,18.98,13.049,13.027,42.0216]
[1672766190321,5.0,13.048,13.029,5.0]
[1672766190741,50.0,13.045,13.029,5.0]
[1672766190952,5.0,13.044,13.029,5.0]
[1672766191162,5.0,13.044,13.032,0.06879391]
[1672766191372,0.0710514,13.041,13.032,19.04879391]
[1672766191583,5.0,13.048,13.033,5.0]
[1672766191794,0.06251626,13.045,13.033,5.0]
[1672766192000,0.06251626,13.045,13.036,0.06345945]
[1672766192213,0.06251626,13.045,13.036,5.06345945]
[1672766193367,0.06251626,13.045,13.036,46.75625945]
[1672766194938,50.0,13.064,13.044,5.0]
[1672766195145,91.8291,13.064,13.044,5.0]
[1672766195680,91.8291,13.064,13.046,18.91]
[1672766195888,0.06765198,13.06,13.05,0.07135978]
[1672766196625,100.0,13.051,12.972,417.49]
[1672766196830,18.98,13.051,12.996,45.8588]
[1672766197044,50.0,13.035,12.997,45.8588]
[1672766197248,5.0,13.034,12.998,108.5588]
[1672766197566,5.0,13.034,12.999,5.0]
[1672766197784,5.0,13.044,13.019,5.0]
[1672766197989,5.0,13.044,13.03,18.98]
[1672766198309,55.0,13.044,13.031,5.0]
[1672766198514,50.0,13.044,13.031,5.0]
[1672766198833,0.06881458,13.042,13.033,0.06835041]
[1672766202509,18.98,13.041,13.033,0.00835041]
[1672766202716,50.0,13.034,13.033,0.00835041]
[1672766202929,50.0,13.034,13.02,45.8588]
[1672766203139,5.0,13.033,13.015,18.9]
[1672766203350,5.0,13.033,13.016,5.0]
[1672766203556,0.06943465,13.029,13.018,18.89]
[1672766203771,0.06943465,13.029,13.02,0.06096641]
[1672766204607,5.0,13.033,12.995,75.95]
[1672766204608,5.0,13.028,12.995,75.95]
[1672766204823,18.84,13.026,13.002,18.91]
[1672766205032,5.0,13.025,13.003,5.0]
[1672766205560,50.0,13.024,13.003,5.0]
[1672766205874,50.0,13.024,13.009,0.06377683]
[1672766205875,0.06387519,13.019,13.009,0.06377683]
[1672766206080,0.06387519,13.019,12.999,23.98]
[1672766206081,0.06684925,13.019,13.0,5.0]
[1672766206293,0.06833612,13.014,13.003,18.89]
[1672766206504,0.06199657,13.013,13.005,0.06684004]
[1672766206714,0.06370093,13.014,13.004,5.06450016]
[1672766206924,0.06633828,13.014,13.004,5.06886505]
[1672766207444,0.06633828,13.014,13.006,18.94]
[1672766207653,0.06633828,13.014,13.007,5.0]
[1672766208500,0.06633828,13.014,13.01,18.82]
[1672766208815,0.06633828,13.014,13.011,5.0]
[1672766209025,50.0,13.024,13.011,5.0]
[1672766209238,50.0,13.024,13.013,0.07146568]
[1672766209239,0.06499979,13.022,13.013,0.07146568]
[1672766211551,0.06499979,13.022,13.017,18.9]
[1672766211758,5.0,13.032,13.018,5.0]
[1672766212917,0.0624948,13.03,13.02,0.06040164]
[1672766213336,0.0624948,13.03,13.022,5.0]
[1672766215123,0.0624948,13.03,13.021,18.84]
[1672766215851,0.0624948,13.03,13.02,0.06040164]
[1672766216485,0.0624948,13.03,13.02,5.06040164]
[1672766216691,0.0624948,13.03,13.02,0.06040164]
[1672766223418,50.0,13.024,13.01,18.94]
[1672766223629,5.0,13.014,12.991,5.0]
[1672766224263,23.98,13.014,12.991,5.0]
[1672766224476,0.06575783,13.007,12.998,0.06727696]
[1672766227310,0.06575783,13.007,12.998,18.88727696]
[1672766228045,0.06575783,13.007,12.999,5.0]
[1672766229515,0.06575783,13.007,13.002,18.9]
[1672766229936,0.06575783,13.007,13.003,5.0]
[1672766230147,0.06575783,13.007,12.999,23.81]
[1672766230567,0.06575783,13.007,13.002,18.81]
[1672766231093,0.06575783,13.007,13.003,5.0]
[1672766231298,0.06575783,13.007,12.999,5.0]
[1672766231507,0.06575783,13.007,12.999,23.82]
[1672766232038,0.06575783,13.007,13.003,5.0]
[1672766233719,0.06575783,13.007,12.998,19.04727696]
[1672766234036,0.06575783,13.007,12.998,0.06727696]
[1672766235084,0.06575783,13.007,12.998,5.06727696]
[1672766235294,0.06575783,13.007,12.998,23.95727696]
[1672766235506,0.06575783,13.007,12.998,18.95727696]
[1672766236449,0.06575783,13.007,12.998,0.06727696]
[1672766238236,23.98,13.012,13.007,0.11428198]
[1672766238445,5.0,13.011,12.992,5.0]
[1672766238655,50.0,13.003,12.991,43.6019]
[1672766238861,5.0,13.002,12.988,18.98]
[1672766239077,5.0,13.002,12.981,18.8]
[1672766239284,0.06845771,12.996,12.988,18.82]
[1672766239605,0.06845771,12.996,12.987,0.06370534]
[1672766240655,50.0,12.993,12.987,0.06370534]
[1672766240866,5.0,12.992,12.987,0.06370534]
[1672766241285,0.06845771,12.996,12.987,0.06370534]
[1672766242547,0.06845771,12.996,12.987,5.06370534]
[1672766242757,0.00845771,12.996,12.99,18.94]
[1672766242969,50.0,13.013,12.994,18.81]
[1672766243172,5.0,13.008,12.995,5.0]
[1672766243599,5.0,13.008,12.991,5.0]
[1672766243913,0.06508365,13.004,12.995,0.06831938]
[1672766244545,0.06508365,13.004,12.997,18.98]
[1672766244751,0.06508365,13.004,12.998,5.0]
[1672766244963,5.0,13.012,12.998,5.0]
[1672766245169,55.0,13.012,12.998,5.0]
[1672766245593,5.0,13.016,13.001,18.98]
[1672766245807,5.0,13.016,13.002,5.0]
[1672766246009,0.06317054,13.013,13.003,0.06504928]
[1672766247907,50.0,13.011,13.003,0.06504928]
[1672766248117,5.0,13.01,13.003,0.06504928]
[1672766249689,0.06317054,13.013,13.003,0.06504928]
[1672766250220,0.06317054,13.013,13.003,5.06504928]
[1672766250739,0.06317054,13.013,13.003,0.06504928]
[1672766251690,50.0,13.011,13.003,0.06504928]
[1672766251903,5.0,13.01,13.003,0.06504928]
[1672766253057,50.0,13.011,13.003,0.06504928]
[1672766253262,5.0,13.01,13.003,0.06504928]
[1672766256523,50.0,13.011,13.003,0.06504928]
[1672766256831,49.8857694,13.011,13.003,0.06504928]
[1672766258098,5.0,13.01,13.003,0.06504928]
[1672766258933,5.0,13.01,12.991,18.91]
[1672766259247,49.8857694,13.001,12.992,5.0]
[1672766259461,5.0,13.0,12.992,5.0]
[1672766259883,5.0,13.0,12.989,5.0]